[Event "8th RTU Open 2018"]
[Site "Riga"]
[Date "2018.08.09"]
[Round "6"]
[White "Kukk, Sander"]
[Black "Miedema, David"]
[Result "1/2-1/2"]
[ECO "A01"]
[WhiteElo "2194"]
[BlackElo "2397"]
[Annotator "NA"]
[PlyCount "109"]
[EventDate "2018.08.06"]
[EventType "swiss"]
[EventCountry "LAT"]
[SourceTitle "playchess.com"]
[Source "ChessBase"]
[SourceQuality "1"]
[TimeControl "5400+30"]

1. b3 {[%emt 0:00:00]} d5 {[%emt 0:02:53]} 2. Bb2 {[%emt 0:00:20]} Bg4 {[%emt 0:00:06]} 3. Nf3 {[%emt 0:00:06]} Nd7 {[%emt 0:00:06]} 4. e3 {[%emt 0:00:44]} c6 {[%emt 0:00:45]} 5. Be2 {[%emt 0:01:05]} e6 {[%emt 0:00:06]} 6. h3 {[%emt 0:01:01]} Bh5 {[%emt 0:00:35]} 7. d3 {[%emt 0:00:49]} f5 {[%emt 0:00:47]} 8. Nbd2 {[%emt 0:01:23]} Ngf6 {[%emt 0:00:29]} 9. O-O {[%emt 0:01:57]} Bd6 {[%emt 0:00:36]} 10. e4 {[%emt 0:06:48]} fxe4 {[%emt 0:04:57]} 11. dxe4 {[%emt 0:01:21]} Bxf3 {[%emt 0:00:09]} 12. Bxf3 {[%emt 0:14:14]} O-O {[%emt 0:00:07]} 13. Re1 {[%emt 0:05:06]} Qc7 {[%emt 0:01:45]} 14. Qe2 {[%emt 0:05:49]} Be5 {[%emt 0:01:11]} 15. Bxe5 {[%emt 0:00:42]} Nxe5 {[%emt 0:00:04]} 16. exd5 {[%emt 0:00:38]} Nxf3+ {[%emt 0:00:04]} 17. Nxf3 {[%emt 0:00:20]} exd5 {[%emt 0:00:03]} 18. c4 {[%emt 0:01:39]} Rae8 {[%emt 0:00:22]} 19. Qd3 {[%emt 0:00:37]} Qf4 {[%emt 0:00:32]} 20. cxd5 {[%emt 0:01:28]} Nxd5 {[%emt 0:00:07]} 21. Qd4 {[%emt 0:01:43]} Qxd4 {[%emt 0:00:34]} 22. Nxd4 {[%emt 0:00:02]} Kf7 {[%emt 0:00:51]} 23. g3 {[%emt 0:02:16]} Re7 {[%emt 0:06:36]} 24. Nf5 {[%emt 0:02:49]} Rxe1+ {[%emt 0:00:08]} 25. Rxe1 {[%emt 0:00:04]} Rd8 {[%emt 0:00:03]} 26. Kg2 {[%emt 0:02:25]} a5 {[%emt 0:04:50]} 27. g4 {[%emt 0:10:34]} Nf4+ {[%emt 0:04:27]} 28. Kg3 {[%emt 0:00:24]} Ne6 {[%emt 0:00:11]} 29. Re3 {[%emt 0:03:15]} b5 {[%emt 0:02:36]} 30. f4 {[%emt 0:03:42]} Rd1 {[%emt 0:01:47]} 31. Rc3 {[%emt 0:04:18]} c5 {[%emt 0:02:02]} 32. Ne3 {[%emt 0:06:53]} Rd4 {[%emt 0:02:46]} 33. f5 {[%emt 0:03:05]} Ng5 {[%emt 0:00:04]} 34. Rc2 {[%emt 0:00:06]} Ke7 {[%emt 0:00:42]} 35. h4 {[%emt 0:01:03]} Ne4+ {[%emt 0:00:03]} 36. Kf3 {[%emt 0:00:05]} a4 {[%emt 0:02:26]} 37. bxa4 {[%emt 0:00:51]} Rxa4 {[%emt 0:00:13]} 38. g5 {[%emt 0:04:47]} Kd6 {[%emt 0:02:45]} 39. Nc4+ {[%emt 0:03:30]} bxc4 {[%emt 0:00:21]} 40. Kxe4 {[%emt 0:00:04]} c3+ {[%emt 0:00:46]} 41. Kd3 {[%emt 0:00:33]} Rxh4 {[%emt 0:00:17]} 42. Rf2 {[%emt 0:01:51]} Rh3+ {[%emt 0:00:27]} 43. Kc2 {[%emt 0:00:17]} Ke7 {[%emt 0:01:10]} 44. f6+ {[%emt 0:00:14]} Kf7 {[%emt 0:00:15]} 45. fxg7+ {[%emt 0:00:22]} Kxg7 {[%emt 0:00:04]} 46. Rf5 {[%emt 0:00:47]} Rh2+ {[%emt 0:00:30]} 47. Kxc3 {[%emt 0:00:08]} Rxa2 {[%emt 0:00:04]} 48. Rxc5 {[%emt 0:00:06]} Re2 {[%emt 0:00:11]} 49. Kd3 {[%emt 0:00:03]} Re6 {[%emt 0:00:08]} 50. Rd5 {[%emt 0:00:09]} Kg6 {[%emt 0:00:05]} 51. Kd2 {[%emt 0:00:12]} Re7 {[%emt 0:00:05]} 52. Kd3 {[%emt 0:00:03]} Kh5 {[%emt 0:00:04]} 53. Kd2 {[%emt 0:00:08]} Kg4 {[%emt 0:00:05]} 54. Kd3 {[%emt 0:00:09]} Kf4 {[%emt 0:00:13]} 55. Ra5 {[%emt 0:00:21] Ke5 Ke4+} 1/2-1/2

[Event "8th RTU Open 2018"]
[Site "Riga"]
[Date "2018.08.09"]
[Round "6"]
[White "Player, Edmund C"]
[Black "Hansen, Mads"]
[Result "0-1"]
[ECO "C50"]
[WhiteElo "2194"]
[BlackElo "2387"]
[Annotator "NA"]
[PlyCount "70"]
[EventDate "2018.08.06"]
[EventType "swiss"]
[EventCountry "LAT"]
[SourceTitle "playchess.com"]
[Source "ChessBase"]
[SourceQuality "1"]
[TimeControl "5400+30"]

1. e4 e5 2. Nf3 Nc6 3. Bc4 d6 4. d3 h6 5. c3 Nf6 6. a4 g6 7. O-O Bg7 8. Re1 O-O 9. Nbd2 Re8 10. a5 Be6 11. Bb5 a6 12. Ba4 Nh5 13. d4 exd4 14. Nxd4 Bd7 15. Nxc6 bxc6 16. Nf3 Nf6 17. Qd3 d5 18. e5 Ne4 19. Be3 Bxe5 20. Nxe5 Rxe5 21. f3 Nd6 22. Qd4 Nc4 23. b3 Rxe3 24. Rxe3 Nxe3 25. Qxe3 Qh4 26. Qd4 Qe7 27. Qf2 Re8 28. Kf1 Qe5 29. Re1 Qxc3 30. Rxe8+ Bxe8 31. Qe2 Bd7 32. Qxa6 d4 33. Qc4 Qd2 34. a6 Bf5 35. h3 Bd3+ 0-1

[Event "8th RTU Open 2018"]
[Site "Riga"]
[Date "2018.08.09"]
[Round "6"]
[White "Huber, Philipp"]
[Black "Nikitenko, Mihail"]
[Result "1/2-1/2"]
[ECO "D00"]
[WhiteElo "2189"]
[BlackElo "2374"]
[Annotator "NA"]
[PlyCount "111"]
[EventDate "2018.08.06"]
[EventType "swiss"]
[EventCountry "LAT"]
[SourceTitle "playchess.com"]
[Source "ChessBase"]
[SourceQuality "1"]
[TimeControl "5400+30"]

1. d4 {[%emt 0:00:00]} d5 {[%emt 0:00:00]} 2. Bg5 {[%emt 0:00:00]} Nf6 {[%emt 0:00:00]} 3. Bxf6 {[%emt 0:00:00]} exf6 {[%emt 0:00:27]} 4. e3 {[%emt 0:00:07]} Bd6 {[%emt 0:01:07]} 5. Bd3 {[%emt 0:01:23]} f5 {[%emt 0:02:03]} 6. Ne2 {[%emt 0:03:44]} g6 {[%emt 0:00:13]} 7. c4 {[%emt 0:04:37]} dxc4 {[%emt 0:01:28]} 8. Bxc4 {[%emt 0:00:18]} Nd7 {[%emt 0:00:05]} 9. Nbc3 {[%emt 0:00:30]} c6 {[%emt 0:00:14]} 10. h4 {[%emt 0:09:40]} Nf6 {[%emt 0:02:59]} 11. Nf4 {[%emt 0:01:56]} b5 {[%emt 0:04:46]} 12. Be2 {[%emt 0:02:45]} Bxf4 {[%emt 0:02:57]} 13. exf4 {[%emt 0:00:06]} O-O {[%emt 0:05:51]} 14. O-O {[%emt 0:01:13]} Be6 {[%emt 0:02:41]} 15. Bf3 {[%emt 0:02:22]} Qd6 {[%emt 0:01:20]} 16. Qc1 {[%emt 0:03:16]} Rac8 {[%emt 0:09:55]} 17. Rd1 {[%emt 0:03:59]} Rfd8 {[%emt 0:00:37]} 18. g3 {[%emt 0:04:06]} Re8 {[%emt 0:03:54]} 19. Qc2 {[%emt 0:03:29]} a5 {[%emt 0:00:30]} 20. Rac1 {[%emt 0:01:57]} Qb8 {[%emt 0:02:20]} 21. Qd3 {[%emt 0:11:10]} Bc4 {[%emt 0:01:58]} 22. Qc2 {[%emt 0:00:10]} Red8 {[%emt 0:02:59]} 23. b3 {[%emt 0:19:12]} Be6 {[%emt 0:00:27]} 24. Qe2 {[%emt 0:00:41]} Qb7 {[%emt 0:16:55]} 25. Qe5 {[%emt 0:02:25]} Nd5 {[%emt 0:02:55]} 26. h5 {[%emt 0:02:41]} Re8 {[%emt 0:02:27]} 27. h6 {[%emt 0:00:45]} f6 {[%emt 0:00:19]} 28. Qd6 {[%emt 0:00:01]} Rcd8 {[%emt 0:03:13]} 29. Qc5 {[%emt 0:00:22]} Rc8 {[%emt 0:07:23]} 30. Re1 {[%emt 0:00:34]} Nb4 {[%emt 0:02:13]} 31. Re3 {[%emt 0:02:30]} Kf7 {[%emt 0:00:55]} 32. a3 {[%emt 0:06:55]} Nd5 {[%emt 0:03:02]} 33. Rxe6 {[%emt 0:02:57]} Kxe6 {[%emt 0:00:05]} 34. Nxd5 {[%emt 0:00:07]} cxd5 {[%emt 0:00:31]} 35. Bxd5+ {[%emt 0:00:02]} Qxd5 {[%emt 0:00:10]} 36. Re1+ {[%emt 0:00:02]} Qe4 {[%emt 0:00:07]} 37. Rxe4+ {[%emt 0:00:25]} fxe4 {[%emt 0:00:04]} 38. Qxb5 {[%emt 0:00:17]} Red8 {[%emt 0:00:36]} 39. Qxa5 {[%emt 0:01:30]} Rc1+ {[%emt 0:00:11]} 40. Kg2 {[%emt 0:00:02]} Rxd4 {[%emt 0:00:07]} 41. Qb6+ {[%emt 0:00:18]} Rd6 {[%emt 0:00:06]} 42. Qe3 {[%emt 0:00:08]} Rdd1 {[%emt 0:00:16]} 43. Qxe4+ {[%emt 0:00:06]} Kf7 {[%emt 0:00:19]} 44. Qb7+ {[%emt 0:00:07]} Ke6 {[%emt 0:00:07]} 45. Qxh7 {[%emt 0:00:21]} Rg1+ {[%emt 0:00:21]} 46. Kf3 {[%emt 0:00:05]} Rc3+ {[%emt 0:00:04]} 47. Ke2 {[%emt 0:00:06]} Rc2+ {[%emt 0:00:10]} 48. Kd3 {[%emt 0:01:06]} Rxf2 {[%emt 0:00:06]} 49. Qxg6 {[%emt 0:00:27]} Rf3+ {[%emt 0:00:04]} 50. Kc4 {[%emt 0:00:26]} Rgxg3 {[%emt 0:00:21]} 51. Qe8+ {[%emt 0:01:56]} Kf5 {[%emt 0:00:06]} 52. Qd7+ {[%emt 0:06:26]} Kg6 {[%emt 0:00:27]} 53. Qg7+ {[%emt 0:00:22]} Kf5 {[%emt 0:00:05]} 54. Qd7+ {[%emt 0:00:37]} Kg6 {[%emt 0:00:04]} 55. Qg7+ {[%emt 0:01:17]} Kf5 {[%emt 0:00:04]} 56. Qd7+ {[%emt 0:01:27] Ke5} 1/2-1/2

[Event "8th RTU Open 2018"]
[Site "Riga"]
[Date "2018.08.09"]
[Round "6"]
[White "Smirnova, Ekaterina"]
[Black "Hedman, Erik"]
[Result "1/2-1/2"]
[ECO "A67"]
[WhiteElo "2165"]
[BlackElo "2370"]
[Annotator "NA"]
[PlyCount "79"]
[EventDate "2018.08.06"]
[EventType "swiss"]
[EventCountry "LAT"]
[SourceTitle "playchess.com"]
[Source "ChessBase"]
[SourceQuality "1"]
[TimeControl "5400+30"]

1. d4 {[%emt 0:04:23]} Nf6 {[%emt 0:00:00]} 2. c4 {[%emt 0:00:21]} c5 {[%emt 0:00:00]} 3. d5 {[%emt 0:00:27]} e6 {[%emt 0:00:00]} 4. Nc3 {[%emt 0:00:04]} exd5 {[%emt 0:00:01]} 5. cxd5 {[%emt 0:00:04]} d6 {[%emt 0:00:04]} 6. e4 {[%emt 0:00:04]} g6 {[%emt 0:00:03]} 7. f4 {[%emt 0:00:03]} Bg7 {[%emt 0:00:11]} 8. Bb5+ {[%emt 0:00:04]} Nfd7 {[%emt 0:00:04]} 9. Nf3 {[%emt 0:00:06]} a6 {[%emt 0:00:05]} 10. Bd3 {[%emt 0:00:03]} b5 {[%emt 0:00:05]} 11. O-O {[%emt 0:00:09]} O-O {[%emt 0:00:04]} 12. Kh1 {[%emt 0:00:02]} Re8 {[%emt 0:00:52]} 13. a3 {[%emt 0:00:17]} Ra7 {[%emt 0:00:13]} 14. f5 {[%emt 0:00:07]} Ne5 {[%emt 0:00:19]} 15. Bg5 {[%emt 0:00:19]} Bf6 {[%emt 0:00:15]} 16. Bxf6 {[%emt 0:00:06]} Qxf6 {[%emt 0:00:04]} 17. Nxe5 {[%emt 0:00:04]} Qxe5 {[%emt 0:00:28]} 18. Qd2 {[%emt 0:00:05]} Nd7 {[%emt 0:01:22]} 19. Rf3 {[%emt 0:07:27]} Nf6 {[%emt 0:09:29]} 20. Raf1 {[%emt 0:05:23]} Rf8 {[%emt 0:17:10]} 21. Qf2 {[%emt 0:05:41]} Kg7 {[%emt 0:13:06]} 22. h3 {[%emt 0:05:11]} h6 {[%emt 0:05:55]} 23. fxg6 {[%emt 0:08:37]} fxg6 {[%emt 0:01:38]} 24. a4 {[%emt 0:03:35]} bxa4 {[%emt 0:14:12]} 25. Nxa4 {[%emt 0:04:31]} Bd7 {[%emt 0:00:58]} 26. Nc3 {[%emt 0:13:46]} Bb5 {[%emt 0:02:50]} 27. Bxb5 {[%emt 0:06:31]} axb5 {[%emt 0:00:31]} 28. Qc2 {[%emt 0:00:06]} Raf7 {[%emt 0:01:50]} 29. Nxb5 {[%emt 0:04:26]} Qxe4 {[%emt 0:06:01]} 30. Qd2 {[%emt 0:00:52]} Qxd5 {[%emt 0:01:22]} 31. Qxd5 {[%emt 0:01:32]} Nxd5 {[%emt 0:00:06]} 32. Nxd6 {[%emt 0:00:09]} Rxf3 {[%emt 0:03:42]} 33. Rxf3 {[%emt 0:00:01]} Rxf3 {[%emt 0:04:49]} 34. gxf3 {[%emt 0:00:01]} Kf6 {[%emt 0:01:13]} 35. Ne4+ {[%emt 0:00:09]} Ke5 {[%emt 0:00:05]} 36. Nxc5 {[%emt 0:00:03]} Kf4 {[%emt 0:00:06]} 37. Nd3+ {[%emt 0:03:53]} Kxf3 {[%emt 0:02:08]} 38. Ne5+ {[%emt 0:00:01]} Kg3 {[%emt 0:00:14]} 39. Nxg6 {[%emt 0:00:04]} Kxh3 {[%emt 0:00:09]} 40. b3 {[%emt 0:00:08]} 1/2-1/2

[Event "8th RTU Open 2018"]
[Site "Riga"]
[Date "2018.08.09"]
[Round "6"]
[White "Osis, Renars"]
[Black "Dedebas, Emre Emin"]
[Result "0-1"]
[ECO "A46"]
[WhiteElo "2157"]
[BlackElo "2353"]
[Annotator "NA"]
[PlyCount "76"]
[EventDate "2018.08.06"]
[EventType "swiss"]
[EventCountry "LAT"]
[SourceTitle "playchess.com"]
[Source "ChessBase"]
[SourceQuality "1"]
[TimeControl "5400+30"]

1. d4 {[%emt 0:00:00]} Nf6 {[%emt 0:00:00]} 2. Nf3 {[%emt 0:00:00]} e6 {[%emt 0:00:00]} 3. Bf4 {[%emt 0:00:00]} d5 {[%emt 0:00:00]} 4. e3 {[%emt 0:00:00]} Bd6 {[%emt 0:00:00]} 5. Bd3 {[%emt 0:00:24]} O-O {[%emt 0:00:22]} 6. Nbd2 Bxf4 {[%emt 0:05:08]} 7. exf4 {[%emt 0:06:05]} b6 {[%emt 0:00:03]} 8. c3 {[%emt 0:05:40]} c5 {[%emt 0:00:24]} 9. Qe2 {[%emt 0:00:23]} Nc6 {[%emt 0:00:49]} 10. Ne5 {[%emt 0:00:11]} Bb7 {[%emt 0:02:42]} 11. Ndf3 {[%emt 0:08:59]} cxd4 {[%emt 0:02:55]} 12. Nxc6 {[%emt 0:00:08]} Bxc6 {[%emt 0:00:05]} 13. Nxd4 {[%emt 0:00:04]} Bb7 {[%emt 0:01:51]} 14. O-O-O {[%emt 0:00:36]} Qc7 {[%emt 0:02:58]} 15. Qe3 {[%emt 0:08:20]} a6 {[%emt 0:11:10]} 16. Rhe1 {[%emt 0:05:24]} Rfe8 {[%emt 0:00:45]} 17. Kb1 {[%emt 0:02:45]} Rac8 18. h3 b5 {[%emt 0:04:18]} 19. Qe5 Qb6 20. a3 Ne4 21. Qh5 g6 22. Qh6 Qc5 23. Re3 Nxf2 24. Rf1 Ne4 25. f5 Qf8 26. Qxf8+ Rxf8 27. fxe6 Nd2+ 28. Ka2 Nxf1 29. Bxf1 fxe6 30. Be2 Rce8 31. Rxe6 Rxe6 32. Nxe6 Rf2 33. Bf3 Kf7 34. Nc5 {[%emt 1:06:16]} Bc8 {[%emt 1:04:27]} 35. a4 Ke7 36. axb5 axb5 37. Ka3 Bxh3 38. Bxd5 Bxg2 0-1

[Event "8th RTU Open 2018"]
[Site "Riga"]
[Date "2018.08.11"]
[Round "8"]
[White "Praggnanandhaa, R."]
[Black "Kjartansson, Gudmundur"]
[Result "0-1"]
[ECO "B18"]
[WhiteElo "2532"]
[BlackElo "2434"]
[Annotator "ChessBase"]
[PlyCount "164"]
[EventDate "2018.08.06"]
[EventType "swiss"]
[EventCountry "LAT"]
[SourceTitle "playchess.com"]
[Source "ChessBase"]
[SourceQuality "1"]
[TimeControl "5400+30"]

1. e4 {[%emt 0:00:21]} c6 {[%emt 0:00:00]} 2. d4 {[%emt 0:00:32]} d5 {[%emt 0:00:00]} 3. Nd2 {[%emt 0:00:08]} dxe4 {[%emt 0:00:00]} 4. Nxe4 {[%emt 0:00:04]} Bf5 {[%emt 0:00:06]} 5. Qf3 {[%emt 0:00:09]} e6 {[%emt 0:03:47]} 6. c3 {[%emt 0:05:43]} Nf6 {[%emt 0:05:36]} 7. Ng3 {[%emt 0:12:31]} Bg6 {[%emt 0:01:55]} 8. Nh3 {[%emt 0:04:01]} Nd5 {[%emt 0:05:11]} 9. Bc4 {[%emt 0:03:36]} Nd7 {[%emt 0:09:49]} 10. Nf4 {[%emt 0:06:34]} Nxf4 {[%emt 0:02:50]} 11. Bxf4 {[%emt 0:00:14]} Nb6 {[%emt 0:01:44]} 12. Bb3 {[%emt 0:00:37]} Nd5 {[%emt 0:04:14]} 13. Be5 {[%emt 0:09:50]} f6 {[%emt 0:02:52]} 14. Bf4 {[%emt 0:01:20]} Bd6 {[%emt 0:11:22]} 15. Bd2 {[%emt 0:09:16]} b5 {[%emt 0:00:17]} 16. a4 {[%emt 0:03:34]} a6 {[%emt 0:02:32]} 17. Qe2 {[%emt 0:04:14]} Kf7 {[%emt 0:06:21]} 18. O-O {[%emt 0:04:58]} Bxg3 {[%emt 0:22:40]} 19. fxg3 {[%emt 0:06:05]} h5 {[%emt 0:01:22]} 20. h3 {[%emt 0:03:12]} Qd6 {[%emt 0:06:17]} 21. Bf4 {[%emt 0:05:35]} Qd7 {[%emt 0:00:16]} 22. g4 {[%emt 0:02:55]} hxg4 {[%emt 0:00:36]} 23. Qxg4 {[%emt 0:00:15]} Bd3 {[%emt 0:05:43]} 24. Rf2 {[%emt 0:00:57]} f5 {[%emt 0:00:48]} 25. Be5 {[%emt 0:02:50]} Nf6 {[%emt 0:00:38]} 26. Rxf5 {[%emt 0:02:35]} Bxf5 {[%emt 0:01:31]} 27. Qxf5 {[%emt 0:00:03]} bxa4 {[%emt 0:03:07]} 28. Bc4 {[%emt 0:01:04]} c5 {[%emt 0:01:40]} 29. Rf1 {[%emt 0:02:30]} Rh6 {[%emt 0:00:32]} 30. dxc5 {[%emt 0:00:53]} Re8 {[%emt 0:00:28]} 31. Qf3 {[%emt 0:01:34]} Kg8 {[%emt 0:00:33]} 32. c6 {[%emt 0:00:05]} Qe7 {[%emt 0:00:34]} 33. c7 {[%emt 0:02:18]} Qc5+ {[%emt 0:00:16]} 34. Kh1 {[%emt 0:00:16]} Qxc4 {[%emt 0:00:33]} 35. Rd1 {[%emt 0:00:14]} Nd5 {[%emt 0:00:42]} 36. Qg3 {[%emt 0:02:07]} Re7 {[%emt 0:00:27]} 37. Rd4 {[%emt 0:00:34]} Qc6 {[%emt 0:00:33]} 38. Qg5 {[%emt 0:02:00]} Rxc7 {[%emt 0:00:35]} 39. Bxg7 {[%emt 0:00:17]} Rxg7 {[%emt 0:00:21]} 40. Qxh6 {[%emt 0:00:01]} Qe8 {[%emt 0:00:38]} 41. c4 {[%emt 0:00:41]} Nc7 {[%emt 0:00:31]} 42. Rh4 {[%emt 0:00:22]} Qg6 {[%emt 0:00:29]} 43. Qh8+ {[%emt 0:00:04]} Kf7 {[%emt 0:00:02]} 44. Rf4+ {[%emt 0:00:43]} Ke7 {[%emt 0:00:04]} 45. Qf8+ {[%emt 0:00:29]} Kd7 {[%emt 0:00:01]} 46. Rd4+ {[%emt 0:00:07]} Kc6 {[%emt 0:00:20]} 47. Qf3+ {[%emt 0:03:58]} Kc5 {[%emt 0:00:21]} 48. Rd2 {[%emt 0:00:30]} Qg3 {[%emt 0:00:46]} 49. Qf8+ {[%emt 0:00:50]} Kc6 {[%emt 0:00:28]} 50. Qb4 {[%emt 0:00:35]} Rf7 {[%emt 0:01:40]} 51. Qxa4+ {[%emt 0:00:29]} Kb7 {[%emt 0:00:16]} 52. Qd1 {[%emt 0:00:22]} Rf2 {[%emt 0:01:03]} 53. Rxf2 {[%emt 0:00:15]} Qxf2 {[%emt 0:00:02]} 54. b4 {[%emt 0:00:39]} Kc8 {[%emt 0:00:48]} 55. b5 {[%emt 0:00:45]} axb5 {[%emt 0:00:16]} 56. cxb5 {[%emt 0:00:02]} Nxb5 {[%emt 0:00:25]} 57. Qd3 {[%emt 0:01:04]} Nd4 {[%emt 0:00:35]} 58. Qe4 {[%emt 0:00:13]} Kd7 {[%emt 0:00:24]} 59. Qb7+ {[%emt 0:00:46]} Kd6 {[%emt 0:00:14]} 60. Qb8+ {[%emt 0:00:19]} Kd5 {[%emt 0:00:41]} 61. Qd8+ {[%emt 0:00:25]} Ke4 {[%emt 0:00:53]} 62. Qa8+ {[%emt 0:00:01]} Ke3 {[%emt 0:00:42]} 63. Qa3+ {[%emt 0:00:02]} Ke4 {[%emt 0:00:27]} 64. Qa8+ {[%emt 0:00:02]} Ke3 {[%emt 0:00:14]} 65. Qa3+ {[%emt 0:00:01]} Kf4 {[%emt 0:00:39]} 66. Qf8+ {[%emt 0:01:25]} Nf5 {[%emt 0:00:09]} 67. Qb4+ {[%emt 0:00:41]} Qd4 {[%emt 0:00:37]} 68. Qb3 {[%emt 0:01:13]} Qe3 {[%emt 0:00:49]} 69. Qb4+ {[%emt 0:00:40]} Qd4 {[%emt 0:00:34]} 70. Qb3 {[%emt 0:00:01]} e5 {[%emt 0:00:29]} 71. Kh2 {[%emt 0:00:03]} e4 {[%emt 0:00:24]} 72. g3+ {[%emt 0:00:47]} Ke5 {[%emt 0:00:33]} 73. Qb5+ {[%emt 0:00:16]} Qd5 {[%emt 0:00:30]} 74. Qb2+ {[%emt 0:00:20]} Ke6 {[%emt 0:00:27]} 75. Qb6+ {[%emt 0:00:10]} Qd6 {[%emt 0:00:23]} 76. Qb3+ {[%emt 0:00:04]} Kf6 {[%emt 0:00:18]} 77. h4 {[%emt 0:01:06]} e3 {[%emt 0:00:39]} 78. Qb2+ {[%emt 0:00:44]} Kg6 {[%emt 0:00:31]} 79. Qg2 {[%emt 0:00:14]} Qd2 {[%emt 0:00:25]} 80. Kh3 {[%emt 0:00:03]} Qxg2+ {[%emt 0:00:24]} 81. Kxg2 {[%emt 0:00:01]} e2 {[%emt 0:00:14]} 82. Kf2 {[%emt 0:00:09]} Nxg3 {[%emt 0:00:04]} 0-1

[Event "8th RTU Open 2018"]
[Site "Riga"]
[Date "2018.08.11"]
[Round "8"]
[White "Dragnev, Valentin"]
[Black "Korchmar, Vasiliy"]
[Result "0-1"]
[ECO "D38"]
[WhiteElo "2509"]
[BlackElo "2415"]
[Annotator "ChessBase"]
[PlyCount "100"]
[EventDate "2018.08.06"]
[EventType "swiss"]
[EventCountry "LAT"]
[SourceTitle "playchess.com"]
[Source "ChessBase"]
[SourceQuality "1"]
[TimeControl "5400+30"]

1. d4 {[%emt 0:00:00]} Nf6 {[%emt 0:00:00]} 2. c4 {[%emt 0:00:00]} e6 {[%emt 0:00:10]} 3. Nf3 {[%emt 0:00:00]} d5 {[%emt 0:00:06]} 4. Nc3 {[%emt 0:00:00]} Bb4 {[%emt 0:00:07]} 5. Bd2 {[%emt 0:00:04]} O-O {[%emt 0:02:42]} 6. e3 {[%emt 0:03:04]} b6 {[%emt 0:00:43]} 7. cxd5 {[%emt 0:00:04]} exd5 {[%emt 0:00:05]} 8. Rc1 {[%emt 0:00:04]} Re8 {[%emt 0:10:40]} 9. Bd3 {[%emt 0:03:41]} Ba6 {[%emt 0:00:13]} 10. Bxa6 {[%emt 0:00:29]} Nxa6 {[%emt 0:00:05]} 11. Qa4 {[%emt 0:00:06]} Qc8 {[%emt 0:00:10]} 12. O-O {[%emt 0:00:10]} Bf8 {[%emt 0:00:54]} 13. a3 {[%emt 0:09:19]} c5 {[%emt 0:02:57]} 14. dxc5 {[%emt 0:02:03]} bxc5 {[%emt 0:06:37]} 15. b3 {[%emt 0:22:31]} Qb7 {[%emt 0:07:48]} 16. Rfd1 {[%emt 0:00:35]} Nc7 {[%emt 0:04:11]} 17. Ne2 {[%emt 0:03:06]} Re4 {[%emt 0:07:01]} 18. Qa5 {[%emt 0:08:45]} Re6 {[%emt 0:00:49]} 19. Qc3 {[%emt 0:03:44]} Ra6 {[%emt 0:07:03]} 20. Ra1 {[%emt 0:09:05]} Rb6 {[%emt 0:01:02]} 21. Nc1 {[%emt 0:00:12]} a5 {[%emt 0:07:04]} 22. a4 {[%emt 0:02:29]} Ne4 {[%emt 0:02:00]} 23. Qd3 {[%emt 0:01:02]} Be7 {[%emt 0:05:21]} 24. Be1 {[%emt 0:01:12]} Bf6 {[%emt 0:00:08]} 25. Ra2 {[%emt 0:00:21]} h6 {[%emt 0:06:53]} 26. Rc2 {[%emt 0:01:19]} Rd6 {[%emt 0:03:47]} 27. Ne2 {[%emt 0:10:53]} c4 {[%emt 0:02:04]} 28. bxc4 {[%emt 0:03:20]} dxc4 {[%emt 0:00:02]} 29. Qxd6 {[%emt 0:00:34]} Nxd6 {[%emt 0:00:04]} 30. Rxd6 {[%emt 0:00:02]} Qb3 {[%emt 0:00:54]} 31. Ned4 {[%emt 0:00:11]} Qxa4 {[%emt 0:01:20]} 32. Rc6 {[%emt 0:00:12]} Nd5 {[%emt 0:09:32]} 33. R2xc4 {[%emt 0:04:03]} Nb4 {[%emt 0:00:46]} 34. g3 {[%emt 0:03:51]} Qa1 {[%emt 0:03:34]} 35. Rc1 {[%emt 0:07:01]} Qb2 {[%emt 0:00:01]} 36. R6c3 {[%emt 0:03:24]} Nd3 {[%emt 0:08:12]} 37. R1c2 {[%emt 0:00:19]} Qb1 {[%emt 0:01:03]} 38. Rb3 {[%emt 0:00:20]} Qa1 {[%emt 0:02:14]} 39. Rxd3 {[%emt 0:00:07]} a4 {[%emt 0:00:10]} 40. Kg2 {[%emt 0:01:27]} a3 {[%emt 0:00:20]} 41. Bc3 {[%emt 0:00:40]} Qb1 {[%emt 0:00:01]} 42. Nd2 {[%emt 0:00:13]} Qb7+ {[%emt 0:00:16]} 43. Kg1 {[%emt 0:00:38]} Qa6 {[%emt 0:00:13]} 44. Nb5 {[%emt 0:00:49]} Qxb5 {[%emt 0:00:06]} 45. Rd6 {[%emt 0:00:14]} Bxc3 {[%emt 0:00:21]} 46. Rxc3 {[%emt 0:00:01]} a2 {[%emt 0:00:08]} 47. Nb3 {[%emt 0:00:09]} a1=Q+ {[%emt 0:01:32]} 48. Nxa1 {[%emt 0:00:03]} Rxa1+ {[%emt 0:00:04]} 49. Kg2 {[%emt 0:00:04]} Qf1+ {[%emt 0:00:10]} 50. Kf3 {[%emt 0:00:01]} Ra2 {[%emt 0:00:13]} 0-1

[Event "8th RTU Open 2018"]
[Site "Riga"]
[Date "2018.08.11"]
[Round "8"]
[White "Pultinevicius, Paulius"]
[Black "Petrosyan, Manuel"]
[Result "0-1"]
[ECO "E12"]
[WhiteElo "2452"]
[BlackElo "2567"]
[Annotator "ChessBase"]
[PlyCount "68"]
[EventDate "2018.08.06"]
[EventType "swiss"]
[EventCountry "LAT"]
[SourceTitle "playchess.com"]
[Source "ChessBase"]
[SourceQuality "1"]
[TimeControl "5400+30"]

1. d4 {[%emt 0:01:16]} Nf6 {[%emt 0:00:00]} 2. c4 {[%emt 0:00:05]} e6 {[%emt 0:00:00]} 3. Nf3 {[%emt 0:00:03]} b6 {[%emt 0:00:00]} 4. a3 {[%emt 0:00:07]} Bb7 {[%emt 0:00:00]} 5. Nc3 {[%emt 0:00:06]} d5 {[%emt 0:00:08]} 6. cxd5 {[%emt 0:00:05]} Nxd5 {[%emt 0:00:05]} 7. e3 {[%emt 0:00:05]} Nd7 {[%emt 0:01:37]} 8. Bd3 {[%emt 0:00:32]} c5 {[%emt 0:03:01]} 9. e4 {[%emt 0:05:02]} Nxc3 {[%emt 0:00:49]} 10. bxc3 {[%emt 0:00:14]} Qc7 {[%emt 0:00:47]} 11. O-O {[%emt 0:00:45]} Be7 {[%emt 0:00:09]} 12. Qe2 {[%emt 0:04:23]} O-O {[%emt 0:00:10]} 13. Bb2 {[%emt 0:01:01]} Rac8 {[%emt 0:00:32]} 14. Nd2 {[%emt 0:00:48]} Rfd8 {[%emt 0:01:48]} 15. a4 {[%emt 0:01:02]} Ne5 {[%emt 0:12:31]} 16. Bb5 {[%emt 0:10:29]} cxd4 {[%emt 0:05:29]} 17. cxd4 {[%emt 0:00:05]} Qc2 {[%emt 0:01:03]} 18. Rab1 {[%emt 0:03:47]} Bb4 {[%emt 0:05:49]} 19. d5 {[%emt 0:11:36]} Ng6 {[%emt 0:07:40]} 20. Bc1 {[%emt 0:16:39]} Bc3 {[%emt 0:00:30]} 21. dxe6 {[%emt 0:21:32]} Bxd2 {[%emt 0:05:20]} 22. exf7+ {[%emt 0:00:20]} Kxf7 {[%emt 0:01:57]} 23. Qf3+ {[%emt 0:00:39]} Kg8 {[%emt 0:00:45]} 24. Rb2 {[%emt 0:01:30]} Qxc1 {[%emt 0:04:13]} 25. Qb3+ {[%emt 0:00:42]} Kh8 {[%emt 0:04:27]} 26. Rxc1 {[%emt 0:00:09]} Rxc1+ {[%emt 0:00:10]} 27. Bf1 {[%emt 0:00:05]} Ba6 {[%emt 0:00:22]} 28. Rb1 {[%emt 0:00:05]} Rdc8 {[%emt 0:00:10]} 29. Qb2 {[%emt 0:01:45]} Rxb1 {[%emt 0:00:27]} 30. Qxb1 {[%emt 0:00:05]} Rc1 {[%emt 0:00:51]} 31. Qxc1 {[%emt 0:00:08]} Bxc1 {[%emt 0:00:05]} 32. Bxa6 {[%emt 0:00:04]} Kg8 {[%emt 0:00:16]} 33. g3 {[%emt 0:00:12]} Ne5 {[%emt 0:00:40]} 34. Bb5 {[%emt 0:00:26]} g5 {[%emt 0:00:10]} 0-1